[Event "Titled Tuesday Blitz November 15 Late 2022"]
[White "Forgacs, Attila Jr."]
[Black "Sattarov, Bobir"]
[WhiteFideId "773654"]
[BlackFideId "14203081"]
[WhiteElo "2477"]
[BlackElo "2737"]
[Result "0-1"]
[Round "07"]
[TimeControl "180+1"]
[Date "2022.11.16"]
[WhiteClock "0:00:09"]
[BlackClock "0:01:11"]

1. e4 {[%clk 0:03:00]}  e5 {[%clk 0:03:00]} 2. Nf3 {[%clk 0:03:00]}  Nc6 {[%clk 0:03:00]} 3. Bb5 {[%clk 0:03:00]}  a6 {[%clk 0:03:01]} 4. Ba4 {[%clk 0:03:00]}  Bc5 {[%clk 0:03:00]} 5. c3 {[%clk 0:03:00]}  Qf6 {[%clk 0:03:00]} 6. O-O {[%clk 0:02:58]}  Nge7 {[%clk 0:03:00]} 7. Re1 {[%clk 0:02:40]}  h6 {[%clk 0:02:59]} 8. d4 {[%clk 0:02:40]}  Ba7 {[%clk 0:02:59]} 9. d5 {[%clk 0:02:18]}  Nb8 {[%clk 0:02:59]} 10. Be3 {[%clk 0:02:08]}  O-O {[%clk 0:02:58]} 11. Bxa7 {[%clk 0:02:07]}  Rxa7 {[%clk 0:02:59]} 12. Nbd2 {[%clk 0:02:06]}  d6 {[%clk 0:02:59]} 13. Nf1 {[%clk 0:02:05]}  Bg4 {[%clk 0:02:54]} 14. h3 {[%clk 0:02:03]}  Bxf3 {[%clk 0:02:54]} 15. Qxf3 {[%clk 0:02:04]}  Qxf3 {[%clk 0:02:54]} 16. gxf3 {[%clk 0:02:05]}  b5 {[%clk 0:02:48]} 17. Bb3 {[%clk 0:02:01]}  Nd7 {[%clk 0:02:47]} 18. Ne3 {[%clk 0:01:58]}  f5 {[%clk 0:02:40]} 19. c4 {[%clk 0:01:40]}  b4 {[%clk 0:02:36]} 20. a3 {[%clk 0:01:36]}  Nc5 {[%clk 0:02:35]} 21. Bc2 {[%clk 0:01:28]}  b3 {[%clk 0:02:21]} 22. Bb1 {[%clk 0:01:25]}  f4 {[%clk 0:02:08]} 23. Nf1 {[%clk 0:01:16]}  a5 {[%clk 0:02:02]} 24. Rd1 {[%clk 0:01:16]}  Nc8 {[%clk 0:01:55]} 25. Bd3 {[%clk 0:01:15]}  Nb6 {[%clk 0:01:55]} 26. Be2 {[%clk 0:01:13]}  Raa8 {[%clk 0:01:48]} 27. Rac1 {[%clk 0:01:12]}  Nba4 {[%clk 0:01:44]} 28. Rd2 {[%clk 0:01:11]}  Rf6 {[%clk 0:01:44]} 29. Nh2 {[%clk 0:01:01]}  Rg6+ {[%clk 0:01:44]} 30. Kh1 {[%clk 0:00:58]}  Rf8 {[%clk 0:01:45]} 31. Rg1 {[%clk 0:00:56]}  Rxg1+ {[%clk 0:01:44]} 32. Kxg1 {[%clk 0:00:56]}  Rf6 {[%clk 0:01:44]} 33. Nf1 {[%clk 0:00:50]}  Rg6+ {[%clk 0:01:43]} 34. Kh2 {[%clk 0:00:50]}  Kf8 {[%clk 0:01:43]} 35. Bd1 {[%clk 0:00:46]}  Nb6 {[%clk 0:01:40]} 36. Be2 {[%clk 0:00:44]}  Ke7 {[%clk 0:01:39]} 37. Kh1 {[%clk 0:00:17]}  Rf6 {[%clk 0:01:39]} 38. Kh2 {[%clk 0:00:17]}  Rf8 {[%clk 0:01:39]} 39. Kg2 {[%clk 0:00:17]}  Kd7 {[%clk 0:01:37]} 40. Nh2 {[%clk 0:00:17]}  c6 {[%clk 0:01:37]} 41. Ng4 {[%clk 0:00:13]}  Rc8 {[%clk 0:01:32]} 42. h4 {[%clk 0:00:11]}  cxd5 {[%clk 0:01:29]} 43. cxd5 {[%clk 0:00:12]}  Ke7 {[%clk 0:01:28]} 44. h5 {[%clk 0:00:11]}  Nca4 {[%clk 0:01:27]} 45. Bd3 {[%clk 0:00:09]}  Nc4 {[%clk 0:01:26]} 46. Bxc4 {[%clk 0:00:08]}  Rxc4 {[%clk 0:01:27]} 47. Kf1 {[%clk 0:00:09]}  Rc2 {[%clk 0:01:26]} 48. Ke2 {[%clk 0:00:09]}  Rxb2 {[%clk 0:01:17]} 49. Rxb2 {[%clk 0:00:07]}  Nxb2 {[%clk 0:01:18]} 50. Kd2 {[%clk 0:00:08]}  a4 {[%clk 0:01:12]} 51. Nh2 {[%clk 0:00:07]}  Nc4+ {[%clk 0:01:12]} 52. Kc3 {[%clk 0:00:08]}  Nxa3 {[%clk 0:01:13]} 53. Kb2 {[%clk 0:00:07]}  Nc4+ {[%clk 0:01:12]} 54. Kc3 {[%clk 0:00:08]}  b2 {[%clk 0:01:10]} 55. Kc2 {[%clk 0:00:09]}  a3 {[%clk 0:01:10]} 56. Kb1 {[%clk 0:00:09]}  Nd2+ {[%clk 0:01:10]} 57. Kc2 {[%clk 0:00:09]}  b1=Q+ {[%clk 0:01:11]} 0-1


[Site "https://www.chess.com"]

[Event "Titled Tuesday Blitz November 15 Late 2022"]
[White "Garcia Ramos, Daniel"]
[Black "Gonzalez, Francisco Silva"]
[WhiteFideId "32010311"]
[BlackFideId "1512285"]
[WhiteElo "2357"]
[BlackElo "2159"]
[Result "1-0"]
[Round "07"]
[TimeControl "180+1"]
[Date "2022.11.16"]
[WhiteClock "0:00:08"]
[BlackClock "0:00:21"]

1. e4 {[%clk 0:02:55]}  e5 {[%clk 0:02:58]} 2. Nf3 {[%clk 0:02:54]}  Nc6 {[%clk 0:02:57]} 3. Bc4 {[%clk 0:02:54]}  Bc5 {[%clk 0:02:56]} 4. c3 {[%clk 0:02:54]}  Nf6 {[%clk 0:02:56]} 5. d3 {[%clk 0:02:53]}  d6 {[%clk 0:02:56]} 6. h3 {[%clk 0:02:53]}  a6 {[%clk 0:02:56]} 7. Bb3 {[%clk 0:02:52]}  Ba7 {[%clk 0:02:56]} 8. Nbd2 {[%clk 0:02:52]}  Ne7 {[%clk 0:02:56]} 9. Nf1 {[%clk 0:02:52]}  Ng6 {[%clk 0:02:56]} 10. Ng3 {[%clk 0:02:52]}  h6 {[%clk 0:02:56]} 11. O-O {[%clk 0:02:51]}  O-O {[%clk 0:02:55]} 12. Be3 {[%clk 0:02:51]}  c5 {[%clk 0:02:53]} 13. Qd2 {[%clk 0:02:50]}  Kh7 {[%clk 0:02:52]} 14. d4 {[%clk 0:02:46]}  Be6 {[%clk 0:02:43]} 15. Bxe6 {[%clk 0:02:41]}  fxe6 {[%clk 0:02:43]} 16. dxc5 {[%clk 0:02:41]}  Bxc5 {[%clk 0:02:38]} 17. Bxc5 {[%clk 0:02:41]}  dxc5 {[%clk 0:02:38]} 18. Rad1 {[%clk 0:02:38]}  Qc8 {[%clk 0:02:30]} 19. Qd6 {[%clk 0:02:36]}  Rd8 {[%clk 0:02:30]} 20. Qb6 {[%clk 0:02:33]}  Rd7 {[%clk 0:02:04]} 21. Rxd7 {[%clk 0:02:24]}  Qxd7 {[%clk 0:02:04]} 22. Qxc5 {[%clk 0:02:24]}  Qa4 {[%clk 0:02:04]} 23. Nxe5 {[%clk 0:02:21]}  Nxe4 {[%clk 0:02:03]} 24. Nxe4 {[%clk 0:02:20]}  Qxe4 {[%clk 0:02:03]} 25. Nxg6 {[%clk 0:02:19]}  Kxg6 {[%clk 0:02:03]} 26. Rd1 {[%clk 0:02:15]}  Kh7 {[%clk 0:02:00]} 27. Rd7 {[%clk 0:02:12]}  Rg8 {[%clk 0:01:54]} 28. b4 {[%clk 0:01:47]}  b5 {[%clk 0:01:49]} 29. a3 {[%clk 0:01:41]}  Qb1+ {[%clk 0:01:44]} 30. Kh2 {[%clk 0:01:41]}  Qe4 {[%clk 0:01:44]} 31. Qd4 {[%clk 0:01:40]}  Qf5 {[%clk 0:01:43]} 32. Ra7 {[%clk 0:01:34]}  e5 {[%clk 0:01:42]} 33. Qe3 {[%clk 0:01:29]}  Rd8 {[%clk 0:01:38]} 34. Qg3 {[%clk 0:01:20]}  Rd7 {[%clk 0:01:33]} 35. Rxd7 {[%clk 0:01:19]}  Qxd7 {[%clk 0:01:33]} 36. Qxe5 {[%clk 0:01:20]}  Qd3 {[%clk 0:01:33]} 37. Qd4 {[%clk 0:01:13]}  Qe2 {[%clk 0:01:32]} 38. f3 {[%clk 0:01:06]}  Qf1 {[%clk 0:01:31]} 39. Qe4+ {[%clk 0:01:05]}  Kh8 {[%clk 0:01:31]} 40. Qa8+ {[%clk 0:01:01]}  Kh7 {[%clk 0:01:32]} 41. Qxa6 {[%clk 0:01:02]}  Qc4 {[%clk 0:01:32]} 42. Qd6 {[%clk 0:00:45]}  h5 {[%clk 0:01:22]} 43. Qd4 {[%clk 0:00:42]}  Qb3 {[%clk 0:01:21]} 44. Qe5 {[%clk 0:00:39]}  g6 {[%clk 0:01:20]} 45. Qxb5 {[%clk 0:00:38]}  Qxc3 {[%clk 0:01:21]} 46. Qd7+ {[%clk 0:00:38]}  Kh6 {[%clk 0:01:20]} 47. f4 {[%clk 0:00:30]}  Qxa3 {[%clk 0:01:18]} 48. Qd4 {[%clk 0:00:25]}  Kh7 {[%clk 0:01:11]} 49. b5 {[%clk 0:00:25]}  Qb3 {[%clk 0:01:11]} 50. b6 {[%clk 0:00:25]}  h4 {[%clk 0:01:08]} 51. Qd7+ {[%clk 0:00:21]}  Kh6 {[%clk 0:01:08]} 52. Qg4 {[%clk 0:00:19]}  Qxb6 {[%clk 0:01:07]} 53. Qxh4+ {[%clk 0:00:19]}  Kg7 {[%clk 0:01:08]} 54. Qe7+ {[%clk 0:00:19]}  Kg8 {[%clk 0:01:06]} 55. Qe5 {[%clk 0:00:18]}  Kh7 {[%clk 0:01:05]} 56. f5 {[%clk 0:00:17]}  Qf2 {[%clk 0:01:01]} 57. f6 {[%clk 0:00:15]}  Kh6 {[%clk 0:00:58]} 58. Qd6 {[%clk 0:00:05]}  Kh5 {[%clk 0:00:54]} 59. Qd5+ {[%clk 0:00:03]}  Kh6 {[%clk 0:00:51]} 60. Qf3 {[%clk 0:00:04]}  Qxf3 {[%clk 0:00:47]} 61. gxf3 {[%clk 0:00:04]}  Kg5 {[%clk 0:00:47]} 62. f7 {[%clk 0:00:03]}  Kf6 {[%clk 0:00:48]} 63. f8=Q+ {[%clk 0:00:04]}  Kg5 {[%clk 0:00:48]} 64. Qg7 {[%clk 0:00:04]}  Kf5 {[%clk 0:00:24]} 65. Qh6 {[%clk 0:00:03]}  Kf6 {[%clk 0:00:22]} 66. h4 {[%clk 0:00:04]}  Kf7 {[%clk 0:00:21]} 67. Qg5 {[%clk 0:00:05]}  Ke6 {[%clk 0:00:20]} 68. Kg3 {[%clk 0:00:05]}  Kf7 {[%clk 0:00:20]} 69. Kg4 {[%clk 0:00:06]}  Ke6 {[%clk 0:00:20]} 70. Qxg6+ {[%clk 0:00:06]}  Ke5 {[%clk 0:00:20]} 71. Qf5+ {[%clk 0:00:07]}  Kd4 {[%clk 0:00:20]} 72. h5 {[%clk 0:00:08]}  Ke3 {[%clk 0:00:20]} 73. h6 {[%clk 0:00:08]}  Kf2 {[%clk 0:00:20]} 74. h7 {[%clk 0:00:09]}  Kg2 {[%clk 0:00:21]} 75. h8=Q {[%clk 0:00:10]}  Kg1 {[%clk 0:00:21]} 76. Qc2 {[%clk 0:00:08]} 1-0


[Site "https://www.chess.com"]

[Event "Titled Tuesday Blitz November 15 Late 2022"]
[White "Ghazarian, Kirk"]
[Black "Gasparyan, David"]
[WhiteFideId "30908604"]
[BlackFideId "13311980"]
[WhiteElo "2346"]
[BlackElo "2328"]
[Result "1-0"]
[Round "07"]
[TimeControl "180+1"]
[Date "2022.11.16"]
[WhiteClock "0:00:55"]
[BlackClock "0:00:01"]

1. d4 {[%clk 0:03:00]}  b6 {[%clk 0:02:49]} 2. e4 {[%clk 0:03:00]}  Bb7 {[%clk 0:02:49]} 3. Bd3 {[%clk 0:03:01]}  c5 {[%clk 0:02:48]} 4. c3 {[%clk 0:03:00]}  g6 {[%clk 0:02:45]} 5. Be3 {[%clk 0:02:58]}  Qc7 {[%clk 0:02:37]} 6. Nd2 {[%clk 0:02:57]}  Bg7 {[%clk 0:02:36]} 7. Ne2 {[%clk 0:02:56]}  Nf6 {[%clk 0:02:33]} 8. O-O {[%clk 0:02:56]}  O-O {[%clk 0:02:32]} 9. f3 {[%clk 0:02:51]}  d6 {[%clk 0:02:30]} 10. Rc1 {[%clk 0:02:52]}  Nbd7 {[%clk 0:02:29]} 11. a4 {[%clk 0:02:48]}  a6 {[%clk 0:02:27]} 12. Kh1 {[%clk 0:02:48]}  Rac8 {[%clk 0:02:16]} 13. Ng3 {[%clk 0:02:43]}  Qb8 {[%clk 0:02:14]} 14. Qe2 {[%clk 0:02:43]}  Qa8 {[%clk 0:02:13]} 15. Rfd1 {[%clk 0:02:43]}  Rfd8 {[%clk 0:02:01]} 16. d5 {[%clk 0:02:43]}  Ne5 {[%clk 0:01:57]} 17. c4 {[%clk 0:02:43]}  Nxd3 {[%clk 0:01:57]} 18. Qxd3 {[%clk 0:02:44]}  Nd7 {[%clk 0:01:57]} 19. b3 {[%clk 0:02:43]}  Ne5 {[%clk 0:01:56]} 20. Qe2 {[%clk 0:02:43]}  h5 {[%clk 0:01:51]} 21. h3 {[%clk 0:02:42]}  Rf8 {[%clk 0:01:43]} 22. f4 {[%clk 0:02:41]}  Nd7 {[%clk 0:01:44]} 23. Nf3 {[%clk 0:02:38]}  b5 {[%clk 0:01:35]} 24. Ng5 {[%clk 0:02:35]}  bxc4 {[%clk 0:01:34]} 25. bxc4 {[%clk 0:02:35]}  Rb8 {[%clk 0:01:27]} 26. f5 {[%clk 0:02:14]}  Nf6 {[%clk 0:01:02]} 27. fxg6 {[%clk 0:02:09]}  fxg6 {[%clk 0:00:54]} 28. Ne6 {[%clk 0:02:08]}  Rf7 {[%clk 0:00:50]} 29. e5 {[%clk 0:01:52]}  dxe5 {[%clk 0:00:48]} 30. Bxc5 {[%clk 0:01:52]}  Bc8 {[%clk 0:00:36]} 31. Nd8 {[%clk 0:01:48]}  Bg4 {[%clk 0:00:29]} 32. hxg4 {[%clk 0:01:47]}  Rxd8 {[%clk 0:00:29]} 33. gxh5 {[%clk 0:01:41]}  gxh5 {[%clk 0:00:29]} 34. Rf1 {[%clk 0:01:27]}  Qc8 {[%clk 0:00:26]} 35. Bg1 {[%clk 0:01:23]}  Qg4 {[%clk 0:00:25]} 36. Qxg4 {[%clk 0:01:19]}  hxg4 {[%clk 0:00:26]} 37. Be3 {[%clk 0:01:15]}  Bf8 {[%clk 0:00:19]} 38. Kg1 {[%clk 0:01:08]}  Rh7 {[%clk 0:00:17]} 39. Rf5 {[%clk 0:01:08]}  Rd6 {[%clk 0:00:16]} 40. Rxe5 {[%clk 0:01:04]}  Nd7 {[%clk 0:00:15]} 41. Rg5+ {[%clk 0:01:03]}  Rg7 {[%clk 0:00:15]} 42. Rxg7+ {[%clk 0:01:02]}  Bxg7 {[%clk 0:00:16]} 43. c5 {[%clk 0:00:55]}  Rxd5 {[%clk 0:00:16]} 44. c6 {[%clk 0:00:56]}  Nf6 {[%clk 0:00:01]} 45. c7 {[%clk 0:00:55]} 1-0


[Site "https://www.chess.com"]

[Event "Titled Tuesday Blitz November 15 Late 2022"]
[White "Gokerkan, Cem Kaan"]
[Black "Averjanov, Alexey"]
[WhiteFideId "6336760"]
[BlackFideId "14109867"]
[WhiteElo "2365"]
[BlackElo "2606"]
[Result "0-1"]
[Round "07"]
[TimeControl "180+1"]
[Date "2022.11.16"]
[WhiteClock "0:02:10"]
[BlackClock "0:02:40"]

1. e4 {[%clk 0:03:00]}  c6 {[%clk 0:02:59]} 2. d4 {[%clk 0:03:01]}  d5 {[%clk 0:02:59]} 3. e5 {[%clk 0:03:01]}  Bf5 {[%clk 0:02:59]} 4. h4 {[%clk 0:03:02]}  h5 {[%clk 0:02:59]} 5. c4 {[%clk 0:03:02]}  e6 {[%clk 0:02:58]} 6. Nc3 {[%clk 0:03:03]}  Ne7 {[%clk 0:02:58]} 7. Nge2 {[%clk 0:03:03]}  dxc4 {[%clk 0:02:58]} 8. Ng3 {[%clk 0:03:03]}  Bg6 {[%clk 0:02:58]} 9. Bxc4 {[%clk 0:03:03]}  Nd7 {[%clk 0:02:56]} 10. Bg5 {[%clk 0:03:02]}  Qb6 {[%clk 0:02:55]} 11. O-O {[%clk 0:02:44]}  Nf5 {[%clk 0:02:53]} 12. Nxf5 {[%clk 0:02:42]}  Bxf5 {[%clk 0:02:53]} 13. Qd2 {[%clk 0:02:42]}  Qc7 {[%clk 0:02:49]} 14. Rac1 {[%clk 0:02:38]}  Nb6 {[%clk 0:02:48]} 15. Bb3 {[%clk 0:02:28]}  Be7 {[%clk 0:02:47]} 16. Nb5 {[%clk 0:02:17]}  Qd7 {[%clk 0:02:47]} 17. Bxe7 {[%clk 0:02:18]}  Kxe7 {[%clk 0:02:44]} 18. Qc2 {[%clk 0:02:10]}  Bxc2 {[%clk 0:02:40]} 0-1


[Site "https://www.chess.com"]

[Event "Titled Tuesday Blitz November 15 Late 2022"]
[White "Halvax, Georg"]
[Black "Storey, Charles H"]
[WhiteFideId "1619543"]
[BlackFideId "406686"]
[WhiteElo "2482"]
[BlackElo "2252"]
[Result "0-1"]
[Round "07"]
[TimeControl "180+1"]
[Date "2022.11.16"]
[WhiteClock "0:00:18"]
[BlackClock "0:00:08"]

1. d4 {[%clk 0:03:00]}  g6 {[%clk 0:02:57]} 2. c4 {[%clk 0:03:00]}  Bg7 {[%clk 0:02:58]} 3. Nc3 {[%clk 0:03:01]}  c5 {[%clk 0:02:58]} 4. d5 {[%clk 0:03:01]}  f5 {[%clk 0:02:57]} 5. e4 {[%clk 0:03:01]}  Bxc3+ {[%clk 0:02:57]} 6. bxc3 {[%clk 0:03:00]}  fxe4 {[%clk 0:02:58]} 7. f3 {[%clk 0:03:01]}  Nf6 {[%clk 0:02:57]} 8. fxe4 {[%clk 0:02:59]}  d6 {[%clk 0:02:58]} 9. Bd3 {[%clk 0:02:56]}  Qa5 {[%clk 0:02:55]} 10. Bd2 {[%clk 0:02:53]}  O-O {[%clk 0:02:54]} 11. Nf3 {[%clk 0:02:53]}  Bg4 {[%clk 0:02:54]} 12. O-O {[%clk 0:02:52]}  Nbd7 {[%clk 0:02:54]} 13. Qc2 {[%clk 0:02:49]}  Bxf3 {[%clk 0:02:53]} 14. gxf3 {[%clk 0:02:50]}  Ne5 {[%clk 0:02:53]} 15. f4 {[%clk 0:02:49]}  Nxd3 {[%clk 0:02:50]} 16. Qxd3 {[%clk 0:02:50]}  b5 {[%clk 0:02:40]} 17. cxb5 {[%clk 0:02:39]}  c4 {[%clk 0:02:40]} 18. Qxc4 {[%clk 0:02:37]}  Qb6+ {[%clk 0:02:40]} 19. Kh1 {[%clk 0:02:34]}  a6 {[%clk 0:02:30]} 20. bxa6 {[%clk 0:02:23]}  Rxa6 {[%clk 0:02:30]} 21. e5 {[%clk 0:02:16]}  Nh5 {[%clk 0:01:52]} 22. a4 {[%clk 0:01:59]}  Ra5 {[%clk 0:01:45]} 23. Qd4 {[%clk 0:01:56]}  Qa6 {[%clk 0:01:40]} 24. Rf2 {[%clk 0:01:43]}  Ng7 {[%clk 0:01:40]} 25. Qe4 {[%clk 0:01:18]}  Rc8 {[%clk 0:01:30]} 26. exd6 {[%clk 0:00:59]}  exd6 {[%clk 0:01:25]} 27. f5 {[%clk 0:00:58]}  gxf5 {[%clk 0:01:16]} 28. Rxf5 {[%clk 0:00:58]}  Qc4 {[%clk 0:00:46]} 29. Qxc4 {[%clk 0:00:30]}  Rxc4 {[%clk 0:00:45]} 30. Rg1 {[%clk 0:00:31]}  Raxa4 {[%clk 0:00:20]} 31. Bh6 {[%clk 0:00:23]}  Rc7 {[%clk 0:00:19]} 32. Rfg5 {[%clk 0:00:22]}  Raa7 {[%clk 0:00:18]} 33. Rxg7+ {[%clk 0:00:22]}  Rxg7 {[%clk 0:00:18]} 34. Rxg7+ {[%clk 0:00:23]}  Rxg7 {[%clk 0:00:19]} 35. Bxg7 {[%clk 0:00:23]}  Kxg7 {[%clk 0:00:19]} 36. Kg2 {[%clk 0:00:24]}  Kf6 {[%clk 0:00:20]} 37. Kf3 {[%clk 0:00:25]}  Ke5 {[%clk 0:00:19]} 38. Ke3 {[%clk 0:00:15]}  Kxd5 {[%clk 0:00:20]} 39. Kd3 {[%clk 0:00:16]}  h5 {[%clk 0:00:18]} 40. h4 {[%clk 0:00:15]}  Kc5 {[%clk 0:00:13]} 41. Ke4 {[%clk 0:00:15]}  Kc4 {[%clk 0:00:09]} 42. Kf5 {[%clk 0:00:15]}  Kxc3 {[%clk 0:00:09]} 43. Kg5 {[%clk 0:00:16]}  d5 {[%clk 0:00:09]} 44. Kxh5 {[%clk 0:00:17]}  d4 {[%clk 0:00:10]} 45. Kg6 {[%clk 0:00:18]}  d3 {[%clk 0:00:11]} 46. h5 {[%clk 0:00:18]}  d2 {[%clk 0:00:12]} 47. h6 {[%clk 0:00:18]}  d1=Q {[%clk 0:00:13]} 48. Kg7 {[%clk 0:00:19]}  Qd7+ {[%clk 0:00:12]} 49. Kg8 {[%clk 0:00:18]}  Qe8+ {[%clk 0:00:12]} 50. Kg7 {[%clk 0:00:19]}  Qe7+ {[%clk 0:00:12]} 51. Kg6 {[%clk 0:00:17]}  Qf8 {[%clk 0:00:11]} 52. Kh7 {[%clk 0:00:18]}  Qf7+ {[%clk 0:00:11]} 53. Kh8 {[%clk 0:00:18]}  Qf6+ {[%clk 0:00:09]} 54. Kh7 {[%clk 0:00:18]}  Qg5 {[%clk 0:00:08]} 55. Kh8 {[%clk 0:00:18]}  Qxh6+ {[%clk 0:00:08]} 0-1


[Site "https://www.chess.com"]

[Event "Titled Tuesday Blitz November 15 Late 2022"]
[White "Hambleton, Aman"]
[Black "Dzierzak, Radoslaw"]
[WhiteFideId "2606577"]
[BlackFideId "1161407"]
[WhiteElo "2538"]
[BlackElo "2111"]
[Result "1-0"]
[Round "07"]
[TimeControl "180+1"]
[Date "2022.11.16"]
[WhiteClock "0:00:02"]
[BlackClock "0:00:03"]

1. d4 {[%clk 0:03:00]}  Nf6 {[%clk 0:02:59]} 2. c4 {[%clk 0:02:51]}  e6 {[%clk 0:02:59]} 3. Nc3 {[%clk 0:02:42]}  Bb4 {[%clk 0:03:00]} 4. Qc2 {[%clk 0:02:32]}  O-O {[%clk 0:03:00]} 5. Nf3 {[%clk 0:02:21]}  c5 {[%clk 0:02:55]} 6. dxc5 {[%clk 0:02:18]}  Na6 {[%clk 0:02:55]} 7. g3 {[%clk 0:02:18]}  Nxc5 {[%clk 0:02:52]} 8. Bg2 {[%clk 0:02:15]}  b6 {[%clk 0:02:40]} 9. O-O {[%clk 0:02:14]}  Bb7 {[%clk 0:02:37]} 10. Bf4 {[%clk 0:01:57]}  d6 {[%clk 0:02:17]} 11. Nb5 {[%clk 0:01:45]}  e5 {[%clk 0:02:10]} 12. Bg5 {[%clk 0:01:11]}  a6 {[%clk 0:01:40]} 13. a3 {[%clk 0:00:57]}  axb5 {[%clk 0:01:31]} 14. axb4 {[%clk 0:00:57]}  Nce4 {[%clk 0:01:24]} 15. cxb5 {[%clk 0:00:13]}  Rc8 {[%clk 0:01:01]} 16. Qb3 {[%clk 0:00:07]}  Bd5 {[%clk 0:00:44]} 17. Qe3 {[%clk 0:00:03]}  Ng4 {[%clk 0:00:23]} 18. Qd3 {[%clk 0:00:02]}  Nxg5 {[%clk 0:00:12]} 19. Nxg5 {[%clk 0:00:01]}  Qxg5 {[%clk 0:00:10]} 20. Qxd5 {[%clk 0:00:02]}  Rfd8 {[%clk 0:00:08]} 21. e3 {[%clk 0:00:02]}  Nf6 {[%clk 0:00:07]} 22. Qd2 {[%clk 0:00:02]}  d5 {[%clk 0:00:07]} 23. Ra6 {[%clk 0:00:03]}  d4 {[%clk 0:00:05]} 24. Rxb6 {[%clk 0:00:01]}  dxe3 {[%clk 0:00:06]} 25. Qxe3 {[%clk 0:00:02]}  Qxe3 {[%clk 0:00:05]} 26. fxe3 {[%clk 0:00:03]}  Rc2 {[%clk 0:00:01]} 27. Rc6 {[%clk 0:00:02]}  Rxb2 {[%clk 0:00:02]} 28. Rc4 {[%clk 0:00:03]}  h6 {[%clk 0:00:01]} 29. b6 {[%clk 0:00:03]}  Rdd2 {[%clk 0:00:02]} 30. Bh1 {[%clk 0:00:02]}  e4 {[%clk 0:00:02]} 31. b7 {[%clk 0:00:02]}  Rd8 {[%clk 0:00:02]} 32. Rc8 {[%clk 0:00:02]}  Rd2 {[%clk 0:00:03]} 33. b8=Q {[%clk 0:00:02]} 1-0


[Site "https://www.chess.com"]

[Event "Titled Tuesday Blitz November 15 Late 2022"]
[White "Hansen, Sune Berg"]
[Black "Megalios, Konstantinos"]
[WhiteFideId "1400266"]
[BlackFideId "4238044"]
[WhiteElo "2721"]
[BlackElo "2277"]
[Result "0-1"]
[Round "07"]
[TimeControl "180+1"]
[Date "2022.11.16"]
[WhiteClock "0:00:16"]
[BlackClock "0:00:10"]

1. e4 {[%clk 0:02:56]}  c6 {[%clk 0:02:54]} 2. d4 {[%clk 0:02:55]}  d5 {[%clk 0:02:55]} 3. e5 {[%clk 0:02:55]}  Bf5 {[%clk 0:02:55]} 4. Nd2 {[%clk 0:02:53]}  e6 {[%clk 0:02:55]} 5. Nb3 {[%clk 0:02:54]}  Nd7 {[%clk 0:02:53]} 6. Nf3 {[%clk 0:02:53]}  a5 {[%clk 0:02:53]} 7. a4 {[%clk 0:02:50]}  Bb4+ {[%clk 0:02:53]} 8. c3 {[%clk 0:02:49]}  Be7 {[%clk 0:02:54]} 9. Be2 {[%clk 0:02:45]}  Qb6 {[%clk 0:02:54]} 10. O-O {[%clk 0:02:42]}  Bg6 {[%clk 0:02:53]} 11. Ne1 {[%clk 0:02:39]}  Nh6 {[%clk 0:02:51]} 12. Nd3 {[%clk 0:02:38]}  Nf5 {[%clk 0:02:41]} 13. Nf4 {[%clk 0:02:37]}  O-O {[%clk 0:02:35]} 14. g3 {[%clk 0:02:31]}  Rac8 {[%clk 0:02:30]} 15. h4 {[%clk 0:02:30]}  h6 {[%clk 0:01:59]} 16. Nxg6 {[%clk 0:02:27]}  fxg6 {[%clk 0:02:00]} 17. Bd3 {[%clk 0:02:22]}  c5 {[%clk 0:01:56]} 18. Bb5 {[%clk 0:02:19]}  Nb8 {[%clk 0:01:37]} 19. Qg4 {[%clk 0:02:18]}  Kh7 {[%clk 0:01:36]} 20. Be3 {[%clk 0:01:59]}  c4 {[%clk 0:01:16]} 21. Nd2 {[%clk 0:01:57]}  Na6 {[%clk 0:01:06]} 22. h5 {[%clk 0:00:57]}  g5 {[%clk 0:01:05]} 23. Qd1 {[%clk 0:00:56]}  Nc7 {[%clk 0:01:02]} 24. Qc2 {[%clk 0:00:56]}  Kg8 {[%clk 0:00:57]} 25. g4 {[%clk 0:00:54]}  Nh4 {[%clk 0:00:55]} 26. b3 {[%clk 0:00:37]}  Nxb5 {[%clk 0:00:53]} 27. axb5 {[%clk 0:00:37]}  cxb3 {[%clk 0:00:48]} 28. Qxb3 {[%clk 0:00:36]}  Nf3+ {[%clk 0:00:34]} 29. Kg2 {[%clk 0:00:34]}  Nxd2 {[%clk 0:00:33]} 30. Bxd2 {[%clk 0:00:35]}  Rc4 {[%clk 0:00:33]} 31. Rab1 {[%clk 0:00:30]}  a4 {[%clk 0:00:33]} 32. Qa2 {[%clk 0:00:26]}  a3 {[%clk 0:00:30]} 33. Rb3 {[%clk 0:00:25]}  Ra8 {[%clk 0:00:29]} 34. Ra1 {[%clk 0:00:24]}  Rca4 {[%clk 0:00:23]} 35. Qc2 {[%clk 0:00:21]}  a2 {[%clk 0:00:18]} 36. Rb2 {[%clk 0:00:21]}  Ra3 {[%clk 0:00:16]} 37. Rbxa2 {[%clk 0:00:20]}  Rxa2 {[%clk 0:00:16]} 38. Rxa2 {[%clk 0:00:21]}  Rxa2 {[%clk 0:00:16]} 39. Qxa2 {[%clk 0:00:21]}  Qxb5 {[%clk 0:00:17]} 40. Qc2 {[%clk 0:00:20]}  Qe2 {[%clk 0:00:15]} 41. Kg3 {[%clk 0:00:19]}  Qf1 {[%clk 0:00:13]} 42. Be3 {[%clk 0:00:17]}  Qg1+ {[%clk 0:00:12]} 43. Kf3 {[%clk 0:00:17]}  Qh1+ {[%clk 0:00:12]} 44. Ke2 {[%clk 0:00:17]}  Qg2 {[%clk 0:00:12]} 45. Qg6 {[%clk 0:00:16]}  Qxg4+ {[%clk 0:00:12]} 46. Kd2 {[%clk 0:00:17]}  Qf5 {[%clk 0:00:11]} 47. Qe8+ {[%clk 0:00:18]}  Bf8 {[%clk 0:00:12]} 48. Qd7 {[%clk 0:00:18]}  b5 {[%clk 0:00:10]} 49. Qxb5 {[%clk 0:00:17]}  g4 {[%clk 0:00:11]} 50. Qe8 {[%clk 0:00:17]}  Kh7 {[%clk 0:00:11]} 51. Ke2 {[%clk 0:00:16]}  Qf3+ {[%clk 0:00:10]} 52. Kd2 {[%clk 0:00:17]}  Qf5 {[%clk 0:00:11]} 53. Ke2 {[%clk 0:00:17]}  Ba3 {[%clk 0:00:11]} 54. Kf1 {[%clk 0:00:15]}  Bb2 {[%clk 0:00:11]} 55. Kg2 {[%clk 0:00:16]}  Bxc3 {[%clk 0:00:11]} 56. Qc6 {[%clk 0:00:15]}  Be1 {[%clk 0:00:10]} 57. Kf1 {[%clk 0:00:15]}  Bb4 {[%clk 0:00:10]} 58. Qb5 {[%clk 0:00:15]}  Be7 {[%clk 0:00:09]} 59. Qe2 {[%clk 0:00:15]}  Bh4 {[%clk 0:00:09]} 60. Kg2 {[%clk 0:00:16]}  Qe4+ {[%clk 0:00:09]} 61. Kh2 {[%clk 0:00:15]}  Qf3 {[%clk 0:00:08]} 62. Qxf3 {[%clk 0:00:15]}  gxf3 {[%clk 0:00:09]} 63. Kh3 {[%clk 0:00:15]}  Bg5 {[%clk 0:00:09]} 64. Kg4 {[%clk 0:00:16]}  Bxe3 {[%clk 0:00:09]} 65. Kxf3 {[%clk 0:00:16]}  Bxd4 {[%clk 0:00:09]} 66. Kf4 {[%clk 0:00:16]}  Bxf2 {[%clk 0:00:10]} 0-1


[Site "https://www.chess.com"]

[Event "Titled Tuesday Blitz November 15 Late 2022"]
[White "Harshal, Shahi"]
[Black "Sariego Figueredo, Wilfredo"]
[WhiteFideId "5048257"]
[BlackFideId "3500080"]
[WhiteElo "2054"]
[BlackElo "2309"]
[Result "1-0"]
[Round "07"]
[TimeControl "180+1"]
[Date "2022.11.16"]
[WhiteClock "0:01:17"]
[BlackClock "0:02:15"]

1. e4 {[%clk 0:01:36]}  c5 {[%clk 0:02:57]} 2. Nf3 {[%clk 0:01:36]}  a6 {[%clk 0:02:57]} 3. d4 {[%clk 0:01:36]}  cxd4 {[%clk 0:02:58]} 4. Nxd4 {[%clk 0:01:36]}  Nf6 {[%clk 0:02:58]} 5. Bd3 {[%clk 0:01:35]}  e5 {[%clk 0:02:58]} 6. Nb3 {[%clk 0:01:34]}  Nc6 {[%clk 0:02:54]} 7. c4 {[%clk 0:01:34]}  Bb4+ {[%clk 0:02:53]} 8. Bd2 {[%clk 0:01:33]}  O-O {[%clk 0:02:52]} 9. O-O {[%clk 0:01:32]}  Bxd2 {[%clk 0:02:48]} 10. Qxd2 {[%clk 0:01:32]}  d6 {[%clk 0:02:47]} 11. Nc3 {[%clk 0:01:33]}  Be6 {[%clk 0:02:43]} 12. Rfd1 {[%clk 0:01:30]}  Qc7 {[%clk 0:02:41]} 13. Rac1 {[%clk 0:01:31]}  Rfd8 {[%clk 0:02:36]} 14. Nd5 {[%clk 0:01:29]}  Qb8 {[%clk 0:02:32]} 15. Nxf6+ {[%clk 0:01:30]}  gxf6 {[%clk 0:02:32]} 16. Qh6 {[%clk 0:01:30]}  Qc7 {[%clk 0:02:22]} 17. Rc3 {[%clk 0:01:18]}  Qe7 {[%clk 0:02:15]} 18. Be2 {[%clk 0:01:17]} 1-0


[Site "https://www.chess.com"]